[Event "Titled Tuesday Blitz December 13 Early 2022"]
[White "Kazakouski, Valery"]
[Black "Kleiman, Jake"]
[WhiteFideId "13507443"]
[BlackFideId "2020041"]
[WhiteElo "2516"]
[BlackElo "2603"]
[Result "1-0"]
[Round "11"]
[TimeControl "180+1"]
[Date "2022.12.13"]
[WhiteClock "0:01:34"]
[BlackClock "0:00:12"]

1. Nf3 {[%clk 0:03:00]}  d5 {[%clk 0:02:59]} 2. c4 {[%clk 0:03:01]}  e6 {[%clk 0:03:00]} 3. b3 {[%clk 0:03:00]}  Nf6 {[%clk 0:03:00]} 4. g3 {[%clk 0:03:00]}  Be7 {[%clk 0:03:00]} 5. Bg2 {[%clk 0:03:01]}  O-O {[%clk 0:03:01]} 6. O-O {[%clk 0:03:02]}  dxc4 {[%clk 0:03:00]} 7. bxc4 {[%clk 0:03:02]}  e5 {[%clk 0:03:00]} 8. Nc3 {[%clk 0:02:52]}  Nc6 {[%clk 0:03:00]} 9. d3 {[%clk 0:02:52]}  Re8 {[%clk 0:02:57]} 10. Rb1 {[%clk 0:02:52]}  h6 {[%clk 0:02:54]} 11. Nd2 {[%clk 0:02:28]}  Bf8 {[%clk 0:02:46]} 12. Qa4 {[%clk 0:02:21]}  a6 {[%clk 0:02:30]} 13. Ba3 {[%clk 0:02:20]}  Bxa3 {[%clk 0:02:06]} 14. Qxa3 {[%clk 0:02:21]}  Qd7 {[%clk 0:01:25]} 15. Nb3 {[%clk 0:02:17]}  Nd4 {[%clk 0:00:56]} 16. Rfd1 {[%clk 0:02:12]}  Rb8 {[%clk 0:00:46]} 17. e3 {[%clk 0:02:11]}  Nf5 {[%clk 0:00:35]} 18. Na5 {[%clk 0:01:58]}  h5 {[%clk 0:00:21]} 19. Bc6 {[%clk 0:01:52]}  Qe7 {[%clk 0:00:18]} 20. Qxe7 {[%clk 0:01:50]}  Rxe7 {[%clk 0:00:19]} 21. Bxb7 {[%clk 0:01:50]}  Bxb7 {[%clk 0:00:18]} 22. Nxb7 {[%clk 0:01:49]}  h4 {[%clk 0:00:15]} 23. Nc5 {[%clk 0:01:49]}  Ra8 {[%clk 0:00:15]} 24. Nd5 {[%clk 0:01:43]}  Nxd5 {[%clk 0:00:14]} 25. cxd5 {[%clk 0:01:44]}  Nd6 {[%clk 0:00:15]} 26. Rdc1 {[%clk 0:01:44]}  h3 {[%clk 0:00:15]} 27. e4 {[%clk 0:01:41]}  a5 {[%clk 0:00:15]} 28. Nb7 {[%clk 0:01:40]}  Ne8 {[%clk 0:00:13]} 29. a4 {[%clk 0:01:40]}  g6 {[%clk 0:00:11]} 30. Rc5 {[%clk 0:01:39]}  f5 {[%clk 0:00:11]} 31. Rxa5 {[%clk 0:01:39]}  Rb8 {[%clk 0:00:12]} 32. Rab5 {[%clk 0:01:39]}  Ra8 {[%clk 0:00:12]} 33. a5 {[%clk 0:01:39]}  Nf6 {[%clk 0:00:12]} 34. f3 {[%clk 0:01:39]}  g5 {[%clk 0:00:12]} 35. d6 {[%clk 0:01:40]}  cxd6 {[%clk 0:00:11]} 36. Nxd6 {[%clk 0:01:41]}  fxe4 {[%clk 0:00:11]} 37. dxe4 {[%clk 0:01:38]}  g4 {[%clk 0:00:11]} 38. Rb8+ {[%clk 0:01:35]}  Rxb8 {[%clk 0:00:12]} 39. Rxb8+ {[%clk 0:01:36]}  Kh7 {[%clk 0:00:12]} 40. Kf2 {[%clk 0:01:34]}  Rd7 {[%clk 0:00:12]} 41. Rb7 {[%clk 0:01:34]} 1-0


[Site "https://www.chess.com"]

[Event "Titled Tuesday Blitz December 13 Early 2022"]
[White "Khandelwal, Ankush"]
[Black "Qashashvili, Alexandre"]
[WhiteFideId "413470"]
[BlackFideId "13600842"]
[WhiteElo "2271"]
[BlackElo "2405"]
[Result "1-0"]
[Round "11"]
[TimeControl "180+1"]
[Date "2022.12.14"]
[WhiteClock "0:01:03"]
[BlackClock "0:00:04"]

1. e4 {[%clk 0:03:00]}  c6 {[%clk 0:02:59]} 2. d4 {[%clk 0:03:00]}  d5 {[%clk 0:02:59]} 3. e5 {[%clk 0:03:01]}  Bf5 {[%clk 0:02:58]} 4. h4 {[%clk 0:03:01]}  h5 {[%clk 0:02:57]} 5. Bd3 {[%clk 0:03:02]}  Bxd3 {[%clk 0:02:57]} 6. Qxd3 {[%clk 0:03:02]}  e6 {[%clk 0:02:57]} 7. Bg5 {[%clk 0:03:02]}  Be7 {[%clk 0:02:57]} 8. Nf3 {[%clk 0:03:01]}  Nh6 {[%clk 0:02:57]} 9. Nbd2 {[%clk 0:03:00]}  Nf5 {[%clk 0:02:57]} 10. O-O {[%clk 0:02:56]}  Nd7 {[%clk 0:02:56]} 11. g3 {[%clk 0:02:45]}  Qb6 {[%clk 0:02:53]} 12. c4 {[%clk 0:02:44]}  Bxg5 {[%clk 0:02:43]} 13. hxg5 {[%clk 0:02:42]}  h4 {[%clk 0:02:40]} 14. cxd5 {[%clk 0:02:34]}  hxg3 {[%clk 0:02:32]} 15. dxe6 {[%clk 0:02:34]}  gxf2+ {[%clk 0:02:32]} 16. Kxf2 {[%clk 0:02:33]}  fxe6 {[%clk 0:02:30]} 17. Nc4 {[%clk 0:02:30]}  Qb4 {[%clk 0:02:24]} 18. a3 {[%clk 0:02:23]}  Qe7 {[%clk 0:02:17]} 19. Nd6+ {[%clk 0:01:58]}  Nxd6 {[%clk 0:02:16]} 20. exd6 {[%clk 0:01:59]}  Qxd6 {[%clk 0:02:15]} 21. Qg6+ {[%clk 0:01:59]}  Kd8 {[%clk 0:02:15]} 22. Rh1 {[%clk 0:01:56]}  Kc7 {[%clk 0:02:13]} 23. Rxh8 {[%clk 0:01:40]}  Rxh8 {[%clk 0:02:14]} 24. Re1 {[%clk 0:01:40]}  Qf4 {[%clk 0:02:06]} 25. Kg2 {[%clk 0:01:23]}  Qg4+ {[%clk 0:01:59]} 26. Kf2 {[%clk 0:01:23]}  Rh3 {[%clk 0:01:53]} 27. Re3 {[%clk 0:01:23]}  Qg3+ {[%clk 0:01:53]} 28. Ke2 {[%clk 0:01:22]}  Qg2+ {[%clk 0:01:45]} 29. Kd3 {[%clk 0:01:21]}  Qxb2 {[%clk 0:01:32]} 30. Qxe6 {[%clk 0:01:15]}  Qxa3+ {[%clk 0:01:22]} 31. Ke4 {[%clk 0:01:16]}  Qa4 {[%clk 0:01:04]} 32. Qxh3 {[%clk 0:01:14]}  Qa2 {[%clk 0:00:14]} 33. Kf4 {[%clk 0:01:09]}  Qf7+ {[%clk 0:00:09]} 34. Kg3 {[%clk 0:01:08]}  Nb6 {[%clk 0:00:04]} 35. Qe6 {[%clk 0:01:03]} 1-0


[Site "https://www.chess.com"]

[Event "Titled Tuesday Blitz December 13 Early 2022"]
[White "Kosteniuk, Alexandra"]
[Black "Keymer, Vincent"]
[WhiteFideId "4128125"]
[BlackFideId "12940690"]
[WhiteElo "2469"]
[BlackElo "2600"]
[Result "0-1"]
[Round "11"]
[TimeControl "180+1"]
[Date "2022.12.13"]
[WhiteClock "0:00:01"]
[BlackClock "0:00:55"]

1. e4 {[%clk 0:02:57]}  c6 {[%clk 0:02:58]} 2. Nc3 {[%clk 0:02:55]}  d5 {[%clk 0:02:58]} 3. Nf3 {[%clk 0:02:55]}  dxe4 {[%clk 0:02:59]} 4. Nxe4 {[%clk 0:02:55]}  Nf6 {[%clk 0:03:00]} 5. Qe2 {[%clk 0:02:54]}  Nxe4 {[%clk 0:02:59]} 6. Qxe4 {[%clk 0:02:54]}  Nd7 {[%clk 0:03:00]} 7. d4 {[%clk 0:02:51]}  Nf6 {[%clk 0:03:01]} 8. Qf4 {[%clk 0:02:49]}  Nd5 {[%clk 0:03:00]} 9. Qd2 {[%clk 0:02:43]}  Bg4 {[%clk 0:03:00]} 10. Ne5 {[%clk 0:02:42]}  Bf5 {[%clk 0:03:01]} 11. Bd3 {[%clk 0:02:38]}  Bxd3 {[%clk 0:03:01]} 12. Nxd3 {[%clk 0:02:36]}  e6 {[%clk 0:03:01]} 13. O-O {[%clk 0:02:36]}  Bd6 {[%clk 0:03:00]} 14. c4 {[%clk 0:02:34]}  Ne7 {[%clk 0:03:00]} 15. b3 {[%clk 0:02:29]}  O-O {[%clk 0:02:58]} 16. Bb2 {[%clk 0:02:29]}  Nf5 {[%clk 0:02:57]} 17. Rad1 {[%clk 0:02:19]}  Qh4 {[%clk 0:02:44]} 18. g3 {[%clk 0:02:18]}  Qh5 {[%clk 0:02:43]} 19. Rfe1 {[%clk 0:02:12]}  Rad8 {[%clk 0:02:41]} 20. Re4 {[%clk 0:02:06]}  Qg6 {[%clk 0:02:37]} 21. Qe2 {[%clk 0:02:05]}  h5 {[%clk 0:02:29]} 22. Kh1 {[%clk 0:01:55]}  Rd7 {[%clk 0:02:26]} 23. Rg1 {[%clk 0:01:53]}  Qh7 {[%clk 0:02:14]} 24. f3 {[%clk 0:01:49]}  Rfd8 {[%clk 0:02:04]} 25. Qf2 {[%clk 0:01:42]}  h4 {[%clk 0:01:58]} 26. gxh4 {[%clk 0:01:40]}  Be7 {[%clk 0:01:47]} 27. Ne5 {[%clk 0:01:35]}  Bxh4 {[%clk 0:01:47]} 28. Qe2 {[%clk 0:00:53]}  Rd6 {[%clk 0:01:26]} 29. Reg4 {[%clk 0:00:47]}  Bf6 {[%clk 0:01:25]} 30. Nd3 {[%clk 0:00:08]}  Bxd4 {[%clk 0:01:22]} 31. R1g2 {[%clk 0:00:06]}  Bxb2 {[%clk 0:01:21]} 32. Nxb2 {[%clk 0:00:06]}  Qh6 {[%clk 0:01:17]} 33. Rg1 {[%clk 0:00:05]}  Rd2 {[%clk 0:01:16]} 34. Qe5 {[%clk 0:00:05]}  Rf2 {[%clk 0:01:05]} 35. R4g2 {[%clk 0:00:05]}  Rdd2 {[%clk 0:01:01]} 36. Qb8+ {[%clk 0:00:03]}  Kh7 {[%clk 0:01:01]} 37. Rxf2 {[%clk 0:00:01]}  Rxf2 {[%clk 0:01:02]} 38. Nd3 {[%clk 0:00:02]}  Rxf3 {[%clk 0:00:55]} 39. Ne5 {[%clk 0:00:02]}  Qh5 {[%clk 0:00:55]} 40. Nxf7 {[%clk 0:00:01]}  Qxf7 {[%clk 0:00:55]} 0-1


[Site "https://www.chess.com"]

[Event "Titled Tuesday Blitz December 13 Early 2022"]
[White "Kuderinov, Kirill"]
[Black "Ibarra Jerez, Jose Carlos"]
[WhiteFideId "13701568"]
[BlackFideId "2226332"]
[WhiteElo "2459"]
[BlackElo "2638"]
[Result "0-1"]
[Round "11"]
[TimeControl "180+1"]
[Date "2022.12.13"]
[WhiteClock "0:00:04"]
[BlackClock "0:00:03"]

1. e4 {[%clk 0:03:00]}  g6 {[%clk 0:02:55]} 2. d4 {[%clk 0:03:00]}  Bg7 {[%clk 0:02:56]} 3. Nf3 {[%clk 0:03:00]}  c6 {[%clk 0:02:57]} 4. Nc3 {[%clk 0:03:00]}  d5 {[%clk 0:02:57]} 5. exd5 {[%clk 0:02:57]}  cxd5 {[%clk 0:02:57]} 6. h3 {[%clk 0:02:54]}  Nc6 {[%clk 0:02:56]} 7. Ne2 {[%clk 0:02:48]}  Nf6 {[%clk 0:02:52]} 8. Ng3 {[%clk 0:02:47]}  Ne4 {[%clk 0:02:49]} 9. c3 {[%clk 0:02:44]}  Nxg3 {[%clk 0:02:32]} 10. fxg3 {[%clk 0:02:44]}  e5 {[%clk 0:02:31]} 11. dxe5 {[%clk 0:02:36]}  Nxe5 {[%clk 0:02:32]} 12. Bb5+ {[%clk 0:02:36]}  Nc6 {[%clk 0:02:31]} 13. Bxc6+ {[%clk 0:02:34]}  bxc6 {[%clk 0:02:30]} 14. O-O {[%clk 0:02:35]}  O-O {[%clk 0:02:31]} 15. Kh2 {[%clk 0:02:32]}  a5 {[%clk 0:02:27]} 16. Bg5 {[%clk 0:02:29]}  f6 {[%clk 0:02:25]} 17. Be3 {[%clk 0:02:24]}  Re8 {[%clk 0:02:23]} 18. Qd2 {[%clk 0:02:25]}  a4 {[%clk 0:02:23]} 19. Rae1 {[%clk 0:02:18]}  Ba6 {[%clk 0:02:22]} 20. Rg1 {[%clk 0:02:16]}  Qd6 {[%clk 0:02:21]} 21. Bf4 {[%clk 0:02:13]}  Qd7 {[%clk 0:02:19]} 22. b4 {[%clk 0:02:04]}  a3 {[%clk 0:02:14]} 23. Nd4 {[%clk 0:01:59]}  Bc4 {[%clk 0:02:12]} 24. h4 {[%clk 0:01:53]}  Re4 {[%clk 0:02:09]} 25. Nb3 {[%clk 0:01:36]}  Rxe1 {[%clk 0:01:51]} 26. Rxe1 {[%clk 0:01:36]}  Bxb3 {[%clk 0:01:51]} 27. axb3 {[%clk 0:01:37]}  a2 {[%clk 0:01:37]} 28. Ra1 {[%clk 0:01:36]}  Qa7 {[%clk 0:01:38]} 29. Be3 {[%clk 0:01:34]}  Qa3 {[%clk 0:01:37]} 30. Qc2 {[%clk 0:01:29]}  f5 {[%clk 0:01:38]} 31. h5 {[%clk 0:01:28]}  gxh5 {[%clk 0:01:12]} 32. Bd4 {[%clk 0:01:18]}  Bxd4 {[%clk 0:00:55]} 33. cxd4 {[%clk 0:01:19]}  Qxb4 {[%clk 0:00:56]} 34. Qxc6 {[%clk 0:01:18]}  Qf8 {[%clk 0:00:29]} 35. Qxd5+ {[%clk 0:01:16]}  Kg7 {[%clk 0:00:29]} 36. b4 {[%clk 0:01:02]}  h4 {[%clk 0:00:18]} 37. gxh4 {[%clk 0:00:56]}  Qf6 {[%clk 0:00:10]} 38. Kh3 {[%clk 0:00:44]}  Ra3+ {[%clk 0:00:09]} 39. g3 {[%clk 0:00:41]}  f4 {[%clk 0:00:08]} 40. Qg5+ {[%clk 0:00:21]}  Qxg5 {[%clk 0:00:08]} 41. hxg5 {[%clk 0:00:22]}  f3 {[%clk 0:00:04]} 42. b5 {[%clk 0:00:20]}  f2 {[%clk 0:00:02]} 43. Kg2 {[%clk 0:00:20]}  Rb3 {[%clk 0:00:02]} 44. Rxa2 {[%clk 0:00:20]}  Rxb5 {[%clk 0:00:03]} 45. Kxf2 {[%clk 0:00:19]}  Kg6 {[%clk 0:00:03]} 46. Rd2 {[%clk 0:00:19]}  Kxg5 {[%clk 0:00:04]} 47. Kf3 {[%clk 0:00:16]}  Kf5 {[%clk 0:00:04]} 48. d5 {[%clk 0:00:16]}  Rb3+ {[%clk 0:00:04]} 49. Kg2 {[%clk 0:00:15]}  Rb7 {[%clk 0:00:05]} 50. Kh3 {[%clk 0:00:16]}  Ke4 {[%clk 0:00:02]} 51. Kh4 {[%clk 0:00:13]}  Ke3 {[%clk 0:00:02]} 52. Rd1 {[%clk 0:00:13]}  Ke2 {[%clk 0:00:02]} 53. Ra1 {[%clk 0:00:13]}  Rd7 {[%clk 0:00:02]} 54. Ra5 {[%clk 0:00:13]}  Kf3 {[%clk 0:00:03]} 55. g4 {[%clk 0:00:12]}  Kf4 {[%clk 0:00:02]} 56. g5 {[%clk 0:00:12]}  Rd6 {[%clk 0:00:03]} 57. Kh5 {[%clk 0:00:12]}  Rg6 {[%clk 0:00:02]} 58. Ra4+ {[%clk 0:00:10]}  Kf5 {[%clk 0:00:03]} 59. Rg4 {[%clk 0:00:09]}  h6 {[%clk 0:00:03]} 60. d6 {[%clk 0:00:05]}  hxg5 {[%clk 0:00:02]} 61. d7 {[%clk 0:00:04]}  Rg8 {[%clk 0:00:03]} 0-1


[Site "https://www.chess.com"]

[Event "Titled Tuesday Blitz December 13 Early 2022"]
[White "Kuzmin, Roman"]
[Black "Averjanov, Alexey"]
[WhiteFideId "44134932"]
[BlackFideId "14109867"]
[WhiteElo "2180"]
[BlackElo "2631"]
[Result "0-1"]
[Round "11"]
[TimeControl "180+1"]
[Date "2022.12.14"]
[WhiteClock "0:00:26"]
[BlackClock "0:01:16"]

1. e4 {[%clk 0:03:00]}  c6 {[%clk 0:02:59]} 2. d4 {[%clk 0:02:56]}  d5 {[%clk 0:03:00]} 3. Nc3 {[%clk 0:02:56]}  dxe4 {[%clk 0:03:00]} 4. Nxe4 {[%clk 0:02:57]}  Bf5 {[%clk 0:02:59]} 5. Ng3 {[%clk 0:02:56]}  Bg6 {[%clk 0:02:56]} 6. h4 {[%clk 0:02:56]}  h6 {[%clk 0:02:53]} 7. Nf3 {[%clk 0:02:56]}  Nd7 {[%clk 0:02:48]} 8. h5 {[%clk 0:02:56]}  Bh7 {[%clk 0:02:48]} 9. Bd3 {[%clk 0:02:57]}  Bxd3 {[%clk 0:02:49]} 10. Qxd3 {[%clk 0:02:58]}  e6 {[%clk 0:02:50]} 11. Bd2 {[%clk 0:02:58]}  Ngf6 {[%clk 0:02:45]} 12. O-O-O {[%clk 0:02:58]}  Be7 {[%clk 0:02:45]} 13. Ne4 {[%clk 0:02:55]}  Nxe4 {[%clk 0:02:45]} 14. Qxe4 {[%clk 0:02:56]}  Nf6 {[%clk 0:02:45]} 15. Qe2 {[%clk 0:02:56]}  Qd5 {[%clk 0:02:45]} 16. c4 {[%clk 0:02:56]}  Qe4 {[%clk 0:02:44]} 17. Qxe4 {[%clk 0:02:57]}  Nxe4 {[%clk 0:02:45]} 18. Be3 {[%clk 0:02:57]}  O-O {[%clk 0:02:42]} 19. Ne5 {[%clk 0:02:52]}  Rad8 {[%clk 0:02:40]} 20. Kc2 {[%clk 0:02:34]}  Nf6 {[%clk 0:02:31]} 21. f3 {[%clk 0:02:31]}  Nd7 {[%clk 0:02:31]} 22. Nd3 {[%clk 0:02:12]}  Bf6 {[%clk 0:02:24]} 23. b3 {[%clk 0:02:07]}  e5 {[%clk 0:02:17]} 24. d5 {[%clk 0:02:04]}  cxd5 {[%clk 0:02:17]} 25. cxd5 {[%clk 0:02:04]}  Nb8 {[%clk 0:02:07]} 26. Nf2 {[%clk 0:02:00]}  b6 {[%clk 0:01:56]} 27. Ng4 {[%clk 0:01:49]}  Rd6 {[%clk 0:01:52]} 28. f4 {[%clk 0:01:46]}  Rc8+ {[%clk 0:01:45]} 29. Kb1 {[%clk 0:01:44]}  e4 {[%clk 0:01:45]} 30. Nxf6+ {[%clk 0:01:36]}  Rxf6 {[%clk 0:01:46]} 31. Rc1 {[%clk 0:01:37]}  Rd8 {[%clk 0:01:42]} 32. Rhd1 {[%clk 0:01:34]}  Rfd6 {[%clk 0:01:41]} 33. Rc7 {[%clk 0:01:33]}  Nd7 {[%clk 0:01:32]} 34. Rxa7 {[%clk 0:01:10]}  Nf6 {[%clk 0:01:32]} 35. Kb2 {[%clk 0:00:55]}  Nxd5 {[%clk 0:01:31]} 36. Bc1 {[%clk 0:00:48]}  e3 {[%clk 0:01:26]} 37. Ra6 {[%clk 0:00:32]}  e2 {[%clk 0:01:17]} 38. Re1 {[%clk 0:00:32]}  Nb4 {[%clk 0:01:17]} 39. Rxe2 {[%clk 0:00:26]}  Nxa6 {[%clk 0:01:16]} 0-1


[Site "https://www.chess.com"]

[Event "Titled Tuesday Blitz December 13 Early 2022"]
[White "Larina, Maria"]
[Black "Lauridsen, Jesper Morch"]
[WhiteFideId "24113182"]
[BlackFideId "1401890"]
[WhiteElo "1848"]
[BlackElo "2281"]
[Result "0-1"]
[Round "11"]
[TimeControl "180+1"]
[Date "2022.12.14"]
[WhiteClock "0:00:49"]
[BlackClock "0:01:07"]

1. e4 {[%clk 0:01:59]}  c5 {[%clk 0:02:58]} 2. Nc3 {[%clk 0:01:56]}  e6 {[%clk 0:02:58]} 3. Nf3 {[%clk 0:01:55]}  Nc6 {[%clk 0:02:56]} 4. g3 {[%clk 0:01:55]}  d5 {[%clk 0:02:54]} 5. exd5 {[%clk 0:01:55]}  exd5 {[%clk 0:02:54]} 6. Bb5 {[%clk 0:01:54]}  Bg4 {[%clk 0:02:51]} 7. O-O {[%clk 0:01:47]}  Be7 {[%clk 0:02:51]} 8. d4 {[%clk 0:01:45]}  cxd4 {[%clk 0:02:48]} 9. Qxd4 {[%clk 0:01:33]}  Bxf3 {[%clk 0:02:37]} 10. Qxg7 {[%clk 0:01:32]}  Bf6 {[%clk 0:02:34]} 11. Re1+ {[%clk 0:01:33]}  Kd7 {[%clk 0:01:54]} 12. Qxf7+ {[%clk 0:01:28]}  Kc8 {[%clk 0:01:55]} 13. Re8 {[%clk 0:01:17]}  Bg4 {[%clk 0:01:19]} 14. Rxd8+ {[%clk 0:01:12]}  Nxd8 {[%clk 0:01:19]} 15. Nxd5 {[%clk 0:01:07]}  Nxf7 {[%clk 0:01:18]} 16. Nxf6 {[%clk 0:00:59]}  Nxf6 {[%clk 0:01:16]} 17. Bf4 {[%clk 0:00:57]}  Nd5 {[%clk 0:01:10]} 18. Bd2 {[%clk 0:00:52]}  Ne5 {[%clk 0:01:09]} 19. c4 {[%clk 0:00:50]}  Nf3+ {[%clk 0:01:08]} 20. Kg2 {[%clk 0:00:49]}  Nxd2 {[%clk 0:01:07]} 0-1


[Site "https://www.chess.com"]

[Event "Titled Tuesday Blitz December 13 Early 2022"]
[White "Lazavik, Denis"]
[Black "Babazada, Khazar"]
[WhiteFideId "13515110"]
[BlackFideId "13413554"]
[WhiteElo "2484"]
[BlackElo "2359"]
[Result "1-0"]
[Round "11"]
[TimeControl "180+1"]
[Date "2022.12.13"]
[WhiteClock "0:00:06"]
[BlackClock "0:00:02"]

1. d4 {[%clk 0:03:00]}  Nf6 {[%clk 0:02:59]} 2. c4 {[%clk 0:03:01]}  g6 {[%clk 0:03:00]} 3. g3 {[%clk 0:03:01]}  Bg7 {[%clk 0:03:00]} 4. Bg2 {[%clk 0:03:02]}  d6 {[%clk 0:03:01]} 5. Nc3 {[%clk 0:03:02]}  O-O {[%clk 0:03:02]} 6. Nf3 {[%clk 0:03:03]}  Nbd7 {[%clk 0:03:02]} 7. O-O {[%clk 0:03:04]}  e5 {[%clk 0:03:03]} 8. e4 {[%clk 0:03:04]}  exd4 {[%clk 0:03:03]} 9. Nxd4 {[%clk 0:03:05]}  a6 {[%clk 0:03:03]} 10. h3 {[%clk 0:03:06]}  Re8 {[%clk 0:03:04]} 11. Be3 {[%clk 0:03:06]}  Rb8 {[%clk 0:03:04]} 12. a4 {[%clk 0:03:06]}  Nc5 {[%clk 0:02:55]} 13. Qc2 {[%clk 0:03:06]}  Qe7 {[%clk 0:02:52]} 14. Rfe1 {[%clk 0:03:05]}  c6 {[%clk 0:02:51]} 15. Rad1 {[%clk 0:03:02]}  Bd7 {[%clk 0:02:37]} 16. f3 {[%clk 0:02:20]}  b5 {[%clk 0:02:36]} 17. axb5 {[%clk 0:02:14]}  axb5 {[%clk 0:02:36]} 18. cxb5 {[%clk 0:02:14]}  cxb5 {[%clk 0:02:37]} 19. Bg5 {[%clk 0:02:12]}  Qf8 {[%clk 0:02:26]} 20. b4 {[%clk 0:02:03]}  Ne6 {[%clk 0:02:25]} 21. Nxe6 {[%clk 0:02:03]}  Bxe6 {[%clk 0:02:25]} 22. Qd2 {[%clk 0:02:01]}  Rec8 {[%clk 0:02:16]} 23. Ne2 {[%clk 0:01:57]}  Bb3 {[%clk 0:02:07]} 24. Rc1 {[%clk 0:01:55]}  Nd7 {[%clk 0:02:02]} 25. Be3 {[%clk 0:01:41]}  Ne5 {[%clk 0:02:01]} 26. Bd4 {[%clk 0:01:41]}  Rc4 {[%clk 0:01:53]} 27. f4 {[%clk 0:01:36]}  Nc6 {[%clk 0:01:45]} 28. Bxg7 {[%clk 0:01:31]}  Qxg7 {[%clk 0:01:45]} 29. Rxc4 {[%clk 0:01:24]}  Bxc4 {[%clk 0:01:33]} 30. Qxd6 {[%clk 0:01:23]}  Qb2 {[%clk 0:01:04]} 31. Qxc6 {[%clk 0:01:11]}  Bxe2 {[%clk 0:01:04]} 32. Qc1 {[%clk 0:00:53]}  Qd4+ {[%clk 0:00:58]} 33. Kh2 {[%clk 0:00:53]}  Bc4 {[%clk 0:00:32]} 34. Rd1 {[%clk 0:00:50]}  Qb6 {[%clk 0:00:31]} 35. e5 {[%clk 0:00:48]}  Rc8 {[%clk 0:00:29]} 36. Rd6 {[%clk 0:00:45]}  Qb8 {[%clk 0:00:21]} 37. Qd2 {[%clk 0:00:44]}  Be6 {[%clk 0:00:18]} 38. h4 {[%clk 0:00:44]}  Bf5 {[%clk 0:00:18]} 39. Qd5 {[%clk 0:00:34]}  h5 {[%clk 0:00:16]} 40. Rf6 {[%clk 0:00:29]}  Qa7 {[%clk 0:00:12]} 41. Rc6 {[%clk 0:00:24]}  Rxc6 {[%clk 0:00:10]} 42. Qxc6 {[%clk 0:00:25]}  Qf2 {[%clk 0:00:10]} 43. Qxb5 {[%clk 0:00:20]}  Be4 {[%clk 0:00:10]} 44. Qf1 {[%clk 0:00:20]}  Qb2 {[%clk 0:00:10]} 45. b5 {[%clk 0:00:12]}  Bxg2 {[%clk 0:00:11]} 46. Qxg2 {[%clk 0:00:13]}  Qxb5 {[%clk 0:00:11]} 47. Qd2 {[%clk 0:00:11]}  Qf1 {[%clk 0:00:11]} 48. Qg2 {[%clk 0:00:10]}  Qe1 {[%clk 0:00:11]} 49. Qf3 {[%clk 0:00:10]}  Qd2+ {[%clk 0:00:11]} 50. Kh3 {[%clk 0:00:11]}  Qe1 {[%clk 0:00:11]} 51. g4 {[%clk 0:00:09]}  hxg4+ {[%clk 0:00:12]} 52. Kxg4 {[%clk 0:00:10]}  Qg1+ {[%clk 0:00:12]} 53. Kh3 {[%clk 0:00:10]}  Kg7 {[%clk 0:00:10]} 54. h5 {[%clk 0:00:04]}  gxh5 {[%clk 0:00:08]} 55. Qxh5 {[%clk 0:00:05]}  Qh1+ {[%clk 0:00:08]} 56. Kg4 {[%clk 0:00:05]}  Qg2+ {[%clk 0:00:05]} 57. Kh4 {[%clk 0:00:05]}  Qh2+ {[%clk 0:00:04]} 58. Kg5 {[%clk 0:00:06]}  Qe2 {[%clk 0:00:02]} 59. Qxe2 {[%clk 0:00:06]} 1-0


[Site "https://www.chess.com"]

[Event "Titled Tuesday Blitz December 13 Early 2022"]
[White "Lenderman, Aleksandr"]
[Black "Alexakis, Dimitris"]
[WhiteFideId "2021285"]
[BlackFideId "4277023"]
[WhiteElo "2607"]
[BlackElo "2470"]
[Result "0-1"]
[Round "11"]
[TimeControl "180+1"]
[Date "2022.12.13"]
[WhiteClock "0:01:01"]
[BlackClock "0:00:17"]

1. Nf3 {[%clk 0:03:00]}  Nf6 {[%clk 0:02:54]} 2. c4 {[%clk 0:03:00]}  g6 {[%clk 0:02:54]} 3. Nc3 {[%clk 0:03:00]}  Bg7 {[%clk 0:02:55]} 4. e4 {[%clk 0:03:01]}  d6 {[%clk 0:02:56]} 5. d4 {[%clk 0:03:01]}  O-O {[%clk 0:02:56]} 6. Be2 {[%clk 0:03:01]}  Bg4 {[%clk 0:02:56]} 7. Be3 {[%clk 0:03:00]}  Bxf3 {[%clk 0:02:55]} 8. Bxf3 {[%clk 0:03:00]}  Nc6 {[%clk 0:02:53]} 9. d5 {[%clk 0:02:58]}  Ne5 {[%clk 0:02:53]} 10. Be2 {[%clk 0:02:58]}  h5 {[%clk 0:02:47]} 11. h3 {[%clk 0:02:58]}  Ned7 {[%clk 0:02:42]} 12. O-O {[%clk 0:02:58]}  e5 {[%clk 0:02:40]} 13. b4 {[%clk 0:02:55]}  Kh7 {[%clk 0:02:36]} 14. Qd2 {[%clk 0:02:55]}  Ng8 {[%clk 0:02:36]} 15. c5 {[%clk 0:02:54]}  Qe7 {[%clk 0:02:35]} 16. Nb5 {[%clk 0:02:53]}  Ndf6 {[%clk 0:02:21]} 17. f3 {[%clk 0:02:48]}  a6 {[%clk 0:02:16]} 18. Nc3 {[%clk 0:02:47]}  Bh6 {[%clk 0:02:17]} 19. Bxh6 {[%clk 0:02:43]}  Nxh6 {[%clk 0:02:18]} 20. Qe3 {[%clk 0:02:41]}  h4 {[%clk 0:01:58]} 21. Rfc1 {[%clk 0:02:38]}  Nh5 {[%clk 0:01:52]} 22. Bf1 {[%clk 0:02:29]}  f5 {[%clk 0:01:49]} 23. cxd6 {[%clk 0:02:27]}  cxd6 {[%clk 0:01:48]} 24. Na4 {[%clk 0:02:26]}  fxe4 {[%clk 0:01:38]} 25. fxe4 {[%clk 0:02:25]}  Rf7 {[%clk 0:01:12]} 26. Nb6 {[%clk 0:02:19]}  Raf8 {[%clk 0:01:10]} 27. Rc2 {[%clk 0:02:14]}  Ng3 {[%clk 0:00:52]} 28. Bd3 {[%clk 0:02:13]}  g5 {[%clk 0:00:27]} 29. Rac1 {[%clk 0:02:12]}  Qf6 {[%clk 0:00:25]} 30. Rc7 {[%clk 0:02:05]}  g4 {[%clk 0:00:26]} 31. Rxf7+ {[%clk 0:01:58]}  Rxf7 {[%clk 0:00:27]} 32. Kh2 {[%clk 0:01:11]}  gxh3 {[%clk 0:00:26]} 33. gxh3 {[%clk 0:01:12]}  Qf2+ {[%clk 0:00:24]} 34. Qxf2 {[%clk 0:01:12]}  Rxf2+ {[%clk 0:00:24]} 35. Kg1 {[%clk 0:01:13]}  Rd2 {[%clk 0:00:24]} 36. Rc7+ {[%clk 0:01:14]}  Kg6 {[%clk 0:00:24]} 37. Bc4 {[%clk 0:01:09]}  Nf7 {[%clk 0:00:23]} 38. Nd7 {[%clk 0:01:02]}  Ng5 {[%clk 0:00:19]} 39. Nf8+ {[%clk 0:01:03]}  Kh6 {[%clk 0:00:18]} 40. Bf1 {[%clk 0:01:01]}  Nf3# {[%clk 0:00:17]} 0-1


[Site "https://www.chess.com"]